[Event "Titled Tuesday Blitz January 10 Early 2023"]
[White "Musovic, Armin"]
[Black "Marcziter, Dmitrii"]
[WhiteFideId "939935"]
[BlackFideId "13900765"]
[WhiteElo "2261"]
[BlackElo "2234"]
[Result "1-0"]
[Round "05"]
[TimeControl "180+2"]
[Date "2023.01.10"]
[WhiteClock "0:00:48"]
[BlackClock "0:00:55"]

1. a3 {[%clk 0:03:00]}  e5 {[%clk 0:02:59]} 2. Nc3 {[%clk 0:03:00]}  Nf6 {[%clk 0:02:53]} 3. d4 {[%clk 0:03:00]}  exd4 {[%clk 0:02:52]} 4. Qxd4 {[%clk 0:03:01]}  Nc6 {[%clk 0:02:51]} 5. Qa4 {[%clk 0:03:02]}  d5 {[%clk 0:02:50]} 6. Bg5 {[%clk 0:03:02]}  d4 {[%clk 0:02:47]} 7. O-O-O {[%clk 0:03:02]}  Bd6 {[%clk 0:02:45]} 8. Nb5 {[%clk 0:03:01]}  Bc5 {[%clk 0:02:34]} 9. Bxf6 {[%clk 0:02:56]}  gxf6 {[%clk 0:02:32]} 10. Nf3 {[%clk 0:02:56]}  Bd7 {[%clk 0:02:28]} 11. Qc4 {[%clk 0:02:54]}  Bb6 {[%clk 0:02:26]} 12. Nbxd4 {[%clk 0:02:53]}  Qe7 {[%clk 0:02:21]} 13. Nxc6 {[%clk 0:02:49]}  Bxc6 {[%clk 0:02:20]} 14. e3 {[%clk 0:02:50]}  Bd7 {[%clk 0:02:11]} 15. Qf4 {[%clk 0:02:37]}  O-O-O {[%clk 0:02:07]} 16. Bd3 {[%clk 0:02:38]}  Kb8 {[%clk 0:02:00]} 17. Bf5 {[%clk 0:02:31]}  Bc6 {[%clk 0:02:00]} 18. Rxd8+ {[%clk 0:02:28]}  Rxd8 {[%clk 0:01:59]} 19. Rd1 {[%clk 0:02:28]}  Rxd1+ {[%clk 0:01:59]} 20. Kxd1 {[%clk 0:02:29]}  a6 {[%clk 0:01:59]} 21. Kc1 {[%clk 0:02:28]}  h5 {[%clk 0:01:56]} 22. Bd3 {[%clk 0:01:21]}  Bc5 {[%clk 0:01:50]} 23. Qh4 {[%clk 0:01:15]}  b5 {[%clk 0:01:20]} 24. b4 {[%clk 0:01:04]}  Bd6 {[%clk 0:01:16]} 25. Qxh5 {[%clk 0:01:04]}  a5 {[%clk 0:01:13]} 26. Nd4 {[%clk 0:00:57]}  Bxg2 {[%clk 0:01:10]} 27. Qxb5+ {[%clk 0:00:56]}  Ka8 {[%clk 0:01:00]} 28. Nc6 {[%clk 0:00:47]}  Bxc6 {[%clk 0:00:58]} 29. Qxc6+ {[%clk 0:00:48]}  Kb8 {[%clk 0:00:55]} 30. Ba6 {[%clk 0:00:48]} 1-0


[Site "https://www.chess.com"]

[Event "Titled Tuesday Blitz January 10 Early 2023"]
[White "Borgaonkar Akshay"]
[Black "Guo, Josh"]
[WhiteFideId "25639110"]
[BlackFideId "2682427"]
[WhiteElo "1991"]
[BlackElo "2112"]
[Result "1-0"]
[Round "05"]
[TimeControl "180+2"]
[Date "2023.01.10"]
[WhiteClock "0:00:52"]
[BlackClock "0:00:01"]

1. a3 {[%clk 0:02:57]}  e5 {[%clk 0:02:58]} 2. c4 {[%clk 0:02:57]}  c6 {[%clk 0:02:49]} 3. e4 {[%clk 0:02:54]}  Nf6 {[%clk 0:02:44]} 4. Nc3 {[%clk 0:02:53]}  d5 {[%clk 0:02:37]} 5. cxd5 {[%clk 0:02:53]}  cxd5 {[%clk 0:02:37]} 6. exd5 {[%clk 0:02:51]}  Nxd5 {[%clk 0:02:37]} 7. Nxd5 {[%clk 0:02:48]}  Qxd5 {[%clk 0:02:38]} 8. Ne2 {[%clk 0:02:48]}  Nc6 {[%clk 0:02:18]} 9. Nc3 {[%clk 0:02:47]}  Qd8 {[%clk 0:02:13]} 10. Bc4 {[%clk 0:02:45]}  Be7 {[%clk 0:01:55]} 11. O-O {[%clk 0:02:42]}  O-O {[%clk 0:01:55]} 12. d3 {[%clk 0:02:42]}  Bf5 {[%clk 0:01:48]} 13. Nd5 {[%clk 0:02:35]}  Bc5 {[%clk 0:01:36]} 14. Be3 {[%clk 0:02:29]}  Qd6 {[%clk 0:01:16]} 15. b4 {[%clk 0:02:27]}  Bxe3 {[%clk 0:01:15]} 16. fxe3 {[%clk 0:02:27]}  Be6 {[%clk 0:01:11]} 17. Qf3 {[%clk 0:02:22]}  Rad8 {[%clk 0:01:08]} 18. e4 {[%clk 0:02:15]}  Nd4 {[%clk 0:01:07]} 19. Qf2 {[%clk 0:02:15]}  Kh8 {[%clk 0:01:02]} 20. Ne3 {[%clk 0:02:07]}  Bxc4 {[%clk 0:00:44]} 21. Nxc4 {[%clk 0:02:05]}  Qe6 {[%clk 0:00:43]} 22. Rad1 {[%clk 0:02:02]}  f6 {[%clk 0:00:43]} 23. Ne3 {[%clk 0:02:02]}  Rc8 {[%clk 0:00:41]} 24. Nd5 {[%clk 0:01:59]}  Rc2 {[%clk 0:00:40]} 25. Rd2 {[%clk 0:01:59]}  Rfc8 {[%clk 0:00:40]} 26. Ne3 {[%clk 0:01:47]}  Rc1 {[%clk 0:00:36]} 27. Nc4 {[%clk 0:01:46]}  Rxf1+ {[%clk 0:00:23]} 28. Qxf1 {[%clk 0:01:46]}  h6 {[%clk 0:00:20]} 29. Ne3 {[%clk 0:01:40]}  Rc3 {[%clk 0:00:18]} 30. Nd5 {[%clk 0:01:38]}  Qc6 {[%clk 0:00:15]} 31. Nxc3 {[%clk 0:01:37]}  Qxc3 {[%clk 0:00:15]} 32. Rf2 {[%clk 0:01:34]}  Qxa3 {[%clk 0:00:14]} 33. Qe1 {[%clk 0:01:22]}  Qxd3 {[%clk 0:00:11]} 34. h3 {[%clk 0:01:23]}  Nc2 {[%clk 0:00:05]} 35. Qc1 {[%clk 0:01:21]}  Nd4 {[%clk 0:00:05]} 36. Qe1 {[%clk 0:01:04]}  Kh7 {[%clk 0:00:04]} 37. Rd2 {[%clk 0:01:00]}  Qc3 {[%clk 0:00:04]} 38. Rd1 {[%clk 0:00:59]}  Qc4 {[%clk 0:00:02]} 39. Kh2 {[%clk 0:00:55]}  b6 {[%clk 0:00:01]} 40. Rc1 {[%clk 0:00:52]} 1-0


[Site "https://www.chess.com"]

[Event "Titled Tuesday Blitz January 10 Early 2023"]
[White "Samaganova, Aleksandra"]
[Black "Novik, Maxim"]
[WhiteFideId "13800221"]
[BlackFideId "4102924"]
[WhiteElo "1856"]
[BlackElo "2436"]
[Result "0-1"]
[Round "05"]
[TimeControl "180+2"]
[Date "2023.01.10"]
[WhiteClock "0:00:02"]
[BlackClock "0:01:42"]

1. c4 {[%clk 0:03:00]}  c5 {[%clk 0:02:56]} 2. Nf3 {[%clk 0:03:00]}  Nf6 {[%clk 0:02:55]} 3. e3 {[%clk 0:02:59]}  e6 {[%clk 0:02:55]} 4. Nc3 {[%clk 0:02:59]}  d5 {[%clk 0:02:55]} 5. d4 {[%clk 0:02:56]}  cxd4 {[%clk 0:02:54]} 6. exd4 {[%clk 0:02:56]}  Be7 {[%clk 0:02:54]} 7. cxd5 {[%clk 0:02:55]}  Nxd5 {[%clk 0:02:54]} 8. Bd3 {[%clk 0:02:55]}  Nc6 {[%clk 0:02:54]} 9. O-O {[%clk 0:02:55]}  O-O {[%clk 0:02:54]} 10. a3 {[%clk 0:02:55]}  Bf6 {[%clk 0:02:50]} 11. Bc2 {[%clk 0:02:53]}  Nxc3 {[%clk 0:02:39]} 12. bxc3 {[%clk 0:02:53]}  b6 {[%clk 0:02:40]} 13. Qd3 {[%clk 0:02:39]}  g6 {[%clk 0:02:40]} 14. Bh6 {[%clk 0:02:39]}  Re8 {[%clk 0:02:40]} 15. Rfe1 {[%clk 0:02:37]}  Bb7 {[%clk 0:02:39]} 16. h3 {[%clk 0:02:33]}  Rc8 {[%clk 0:02:38]} 17. Bb3 {[%clk 0:02:27]}  Ne7 {[%clk 0:02:38]} 18. Rac1 {[%clk 0:01:57]}  Nf5 {[%clk 0:02:35]} 19. Bf4 {[%clk 0:01:52]}  Bd5 {[%clk 0:02:35]} 20. Ba4 {[%clk 0:01:44]}  Bc4 {[%clk 0:02:35]} 21. Qb1 {[%clk 0:01:34]}  b5 {[%clk 0:02:33]} 22. Bc2 {[%clk 0:01:26]}  Qa5 {[%clk 0:02:27]} 23. Qb4 {[%clk 0:01:06]}  Qb6 {[%clk 0:02:11]} 24. Be5 {[%clk 0:00:56]}  Be7 {[%clk 0:02:07]} 25. Qb2 {[%clk 0:00:50]}  Qa5 {[%clk 0:02:03]} 26. Ra1 {[%clk 0:00:37]}  Bd5 {[%clk 0:02:02]} 27. Bxf5 {[%clk 0:00:24]}  exf5 {[%clk 0:02:02]} 28. Re3 {[%clk 0:00:23]}  f6 {[%clk 0:02:00]} 29. Bh2 {[%clk 0:00:14]}  Kf7 {[%clk 0:01:59]} 30. Nd2 {[%clk 0:00:10]}  Bf8 {[%clk 0:01:54]} 31. Bg3 {[%clk 0:00:04]}  g5 {[%clk 0:01:46]} 32. Rxe8 {[%clk 0:00:02]}  Rxe8 {[%clk 0:01:45]} 33. f4 {[%clk 0:00:02]}  Re2 {[%clk 0:01:43]} 34. Nf3 {[%clk 0:00:02]}  Rxb2 {[%clk 0:01:42]} 0-1


[Site "https://www.chess.com"]

[Event "Titled Tuesday Blitz January 10 Early 2023"]
[White "Bagwe Gaurang"]
[Black "Hartikainen, Jarmo"]
[WhiteFideId "45039895"]
[BlackFideId "503134"]
[WhiteElo "2067"]
[BlackElo "2108"]
[Result "1-0"]
[Round "05"]
[TimeControl "180+2"]
[Date "2023.01.10"]
[WhiteClock "0:00:17"]
[BlackClock "0:00:01"]

1. e4 {[%clk 0:03:00]}  c5 {[%clk 0:02:59]} 2. Be2 {[%clk 0:02:59]}  e6 {[%clk 0:02:59]} 3. f4 {[%clk 0:02:56]}  d5 {[%clk 0:02:58]} 4. e5 {[%clk 0:02:57]}  Nc6 {[%clk 0:02:58]} 5. Nf3 {[%clk 0:02:57]}  Be7 {[%clk 0:02:58]} 6. O-O {[%clk 0:02:56]}  h5 {[%clk 0:02:57]} 7. c3 {[%clk 0:02:56]}  h4 {[%clk 0:02:57]} 8. d4 {[%clk 0:02:56]}  Nh6 {[%clk 0:02:51]} 9. Be3 {[%clk 0:02:54]}  Nf5 {[%clk 0:02:49]} 10. Bf2 {[%clk 0:02:54]}  b6 {[%clk 0:02:37]} 11. Nbd2 {[%clk 0:02:53]}  Bb7 {[%clk 0:02:35]} 12. Qb3 {[%clk 0:02:46]}  Rb8 {[%clk 0:02:15]} 13. a4 {[%clk 0:02:44]}  O-O {[%clk 0:02:12]} 14. g4 {[%clk 0:02:27]}  hxg3 {[%clk 0:02:07]} 15. hxg3 {[%clk 0:02:27]}  cxd4 {[%clk 0:01:59]} 16. cxd4 {[%clk 0:02:26]}  Na5 {[%clk 0:01:59]} 17. Qd1 {[%clk 0:02:25]}  Rc8 {[%clk 0:01:49]} 18. Kg2 {[%clk 0:02:24]}  g6 {[%clk 0:01:45]} 19. Rh1 {[%clk 0:02:23]}  Kg7 {[%clk 0:01:44]} 20. g4 {[%clk 0:02:06]}  Nh6 {[%clk 0:01:42]} 21. Bh4 {[%clk 0:01:45]}  Nxg4 {[%clk 0:01:27]} 22. Qg1 {[%clk 0:01:41]}  Rh8 {[%clk 0:01:18]} 23. Ng5 {[%clk 0:01:41]}  Rc2 {[%clk 0:01:08]} 24. Bxg4 {[%clk 0:01:34]}  Rxd2+ {[%clk 0:01:07]} 25. Kf3 {[%clk 0:01:33]}  Nc4 {[%clk 0:00:52]} 26. Bxe6 {[%clk 0:01:32]}  Rd3+ {[%clk 0:00:41]} 27. Ke2 {[%clk 0:01:24]}  Rd2+ {[%clk 0:00:17]} 28. Kf3 {[%clk 0:01:23]}  Rd3+ {[%clk 0:00:14]} 29. Kg2 {[%clk 0:00:49]}  Rxh4 {[%clk 0:00:12]} 30. Nxf7 {[%clk 0:00:36]}  Qf8 {[%clk 0:00:08]} 31. Rxh4 {[%clk 0:00:35]}  Bxh4 {[%clk 0:00:07]} 32. Qh2 {[%clk 0:00:35]}  Rg3+ {[%clk 0:00:05]} 33. Kh1 {[%clk 0:00:35]}  Qe7 {[%clk 0:00:02]} 34. Ng5 {[%clk 0:00:17]}  Bxg5 {[%clk 0:00:01]} 35. Qxg3 {[%clk 0:00:17]} 1-0


[Site "https://www.chess.com"]

[Event "Titled Tuesday Blitz January 10 Early 2023"]
[White "Larina, Maria"]
[Black "Florescu, Codrut-Constantin"]
[WhiteFideId "24113182"]
[BlackFideId "1202200"]
[WhiteElo "1948"]
[BlackElo "2259"]
[Result "1-0"]
[Round "05"]
[TimeControl "180+2"]
[Date "2023.01.10"]
[WhiteClock "0:00:08"]
[BlackClock "0:00:11"]

1. e4 {[%clk 0:03:00]}  c5 {[%clk 0:02:55]} 2. Nc3 {[%clk 0:03:00]}  e6 {[%clk 0:02:55]} 3. Nf3 {[%clk 0:02:59]}  a6 {[%clk 0:02:54]} 4. d4 {[%clk 0:02:57]}  cxd4 {[%clk 0:02:54]} 5. Nxd4 {[%clk 0:02:58]}  d6 {[%clk 0:02:54]} 6. g4 {[%clk 0:02:56]}  b5 {[%clk 0:02:52]} 7. Bg2 {[%clk 0:02:56]}  Bb7 {[%clk 0:02:52]} 8. a3 {[%clk 0:02:55]}  Ne7 {[%clk 0:02:52]} 9. f4 {[%clk 0:02:42]}  Nec6 {[%clk 0:02:48]} 10. f5 {[%clk 0:02:27]}  Qh4+ {[%clk 0:02:43]} 11. Kf1 {[%clk 0:02:26]}  Nxd4 {[%clk 0:02:39]} 12. Qxd4 {[%clk 0:02:27]}  Nd7 {[%clk 0:02:19]} 13. fxe6 {[%clk 0:02:24]}  fxe6 {[%clk 0:02:19]} 14. h3 {[%clk 0:01:44]}  Be7 {[%clk 0:02:12]} 15. Ke2 {[%clk 0:01:11]}  O-O {[%clk 0:02:08]} 16. Be3 {[%clk 0:01:06]}  Ne5 {[%clk 0:01:39]} 17. Raf1 {[%clk 0:01:01]}  Nc4 {[%clk 0:01:31]} 18. Bc1 {[%clk 0:01:01]}  Qg3 {[%clk 0:01:27]} 19. Rhg1 {[%clk 0:00:41]}  Rxf1 {[%clk 0:01:01]} 20. Bxf1 {[%clk 0:00:36]}  Qe5 {[%clk 0:01:01]} 21. Qxe5 {[%clk 0:00:31]}  Nxe5 {[%clk 0:01:02]} 22. Bg2 {[%clk 0:00:28]}  Rc8 {[%clk 0:01:01]} 23. Rd1 {[%clk 0:00:26]}  Bc6 {[%clk 0:01:00]} 24. g5 {[%clk 0:00:15]}  a5 {[%clk 0:00:59]} 25. Kf2 {[%clk 0:00:14]}  b4 {[%clk 0:00:58]} 26. axb4 {[%clk 0:00:14]}  axb4 {[%clk 0:00:58]} 27. Ne2 {[%clk 0:00:13]}  Ba4 {[%clk 0:00:44]} 28. b3 {[%clk 0:00:12]}  Be8 {[%clk 0:00:41]} 29. Nd4 {[%clk 0:00:12]}  Bf7 {[%clk 0:00:34]} 30. h4 {[%clk 0:00:11]}  Nc6 {[%clk 0:00:26]} 31. Nb5 {[%clk 0:00:10]}  Rd8 {[%clk 0:00:20]} 32. Bf4 {[%clk 0:00:09]}  e5 {[%clk 0:00:18]} 33. Be3 {[%clk 0:00:09]}  Bh5 {[%clk 0:00:18]} 34. Rd2 {[%clk 0:00:08]}  Kf7 {[%clk 0:00:16]} 35. Bh3 {[%clk 0:00:08]}  Bg6 {[%clk 0:00:15]} 36. Bg2 {[%clk 0:00:06]}  Ke8 {[%clk 0:00:14]} 37. Nc7+ {[%clk 0:00:06]}  Kf7 {[%clk 0:00:14]} 38. Nd5 {[%clk 0:00:07]}  Bf8 {[%clk 0:00:14]} 39. Kg3 {[%clk 0:00:07]}  Ra8 {[%clk 0:00:14]} 40. Rf2+ {[%clk 0:00:07]}  Kg8 {[%clk 0:00:13]} 41. Bd2 {[%clk 0:00:07]}  Ra2 {[%clk 0:00:12]} 42. Bxb4 {[%clk 0:00:07]}  Nxb4 {[%clk 0:00:12]} 43. Nxb4 {[%clk 0:00:08]}  Ra1 {[%clk 0:00:12]} 44. Nd5 {[%clk 0:00:08]}  Re1 {[%clk 0:00:12]} 45. Bh3 {[%clk 0:00:07]}  Rxe4 {[%clk 0:00:11]} 46. Be6+ {[%clk 0:00:08]}  Bf7 {[%clk 0:00:11]} 47. Bxf7+ {[%clk 0:00:07]}  Kh8 {[%clk 0:00:11]} 48. Be6 {[%clk 0:00:08]}  h5 {[%clk 0:00:09]} 49. Rxf8+ {[%clk 0:00:07]}  Kh7 {[%clk 0:00:10]} 50. Bf5+ {[%clk 0:00:08]}  g6 {[%clk 0:00:11]} 51. Bxe4 {[%clk 0:00:08]} 1-0


[Site "https://www.chess.com"]

[Event "Titled Tuesday Blitz January 10 Early 2023"]
[White "Stanojevic, Ilija"]
[Black "Sattarov, Bobir"]
[WhiteFideId "959995"]
[BlackFideId "14203081"]
[WhiteElo "2142"]
[BlackElo "2366"]
[Result "1-0"]
[Round "05"]
[TimeControl "180+2"]
[Date "2023.01.10"]
[WhiteClock "0:00:07"]
[BlackClock "0:00:03"]

1. d4 {[%clk 0:03:00]}  Nf6 {[%clk 0:02:59]} 2. c4 {[%clk 0:03:00]}  e6 {[%clk 0:02:59]} 3. g3 {[%clk 0:03:00]}  d5 {[%clk 0:02:58]} 4. Bg2 {[%clk 0:03:01]}  dxc4 {[%clk 0:02:59]} 5. Nf3 {[%clk 0:03:01]}  a6 {[%clk 0:02:57]} 6. O-O {[%clk 0:02:57]}  b5 {[%clk 0:02:55]} 7. Ne5 {[%clk 0:02:57]}  Nd5 {[%clk 0:02:54]} 8. e4 {[%clk 0:02:56]}  Nb6 {[%clk 0:02:53]} 9. d5 {[%clk 0:02:55]}  exd5 {[%clk 0:02:49]} 10. exd5 {[%clk 0:02:56]}  Bd6 {[%clk 0:02:49]} 11. Re1 {[%clk 0:02:53]}  O-O {[%clk 0:02:48]} 12. Bf4 {[%clk 0:02:41]}  Re8 {[%clk 0:02:42]} 13. Qh5 {[%clk 0:02:20]}  g6 {[%clk 0:02:39]} 14. Qh6 {[%clk 0:02:02]}  N8d7 {[%clk 0:02:35]} 15. Nf3 {[%clk 0:01:28]}  Rxe1+ {[%clk 0:02:25]} 16. Nxe1 {[%clk 0:01:29]}  Bb7 {[%clk 0:02:24]} 17. Bxd6 {[%clk 0:01:22]}  cxd6 {[%clk 0:02:25]} 18. Nc3 {[%clk 0:01:22]}  Nf6 {[%clk 0:02:18]} 19. Rd1 {[%clk 0:01:20]}  b4 {[%clk 0:02:17]} 20. Ne4 {[%clk 0:01:17]}  Nxe4 {[%clk 0:02:17]} 21. Bxe4 {[%clk 0:01:18]}  Qf6 {[%clk 0:02:18]} 22. Qe3 {[%clk 0:01:13]}  Nd7 {[%clk 0:02:13]} 23. Rc1 {[%clk 0:01:07]}  Rc8 {[%clk 0:01:33]} 24. Qa7 {[%clk 0:01:05]}  Rc7 {[%clk 0:01:33]} 25. Nd3 {[%clk 0:00:47]}  Qg5 {[%clk 0:01:14]} 26. f4 {[%clk 0:00:39]}  Qe7 {[%clk 0:01:13]} 27. Qd4 {[%clk 0:00:30]}  Nf6 {[%clk 0:01:03]} 28. Nf2 {[%clk 0:00:21]}  c3 {[%clk 0:00:55]} 29. bxc3 {[%clk 0:00:18]}  bxc3 {[%clk 0:00:55]} 30. Bf3 {[%clk 0:00:18]}  c2 {[%clk 0:00:53]} 31. Qd2 {[%clk 0:00:16]}  h5 {[%clk 0:00:44]} 32. Rxc2 {[%clk 0:00:14]}  Rxc2 {[%clk 0:00:45]} 33. Qxc2 {[%clk 0:00:15]}  Bxd5 {[%clk 0:00:41]} 34. Bxd5 {[%clk 0:00:15]}  Nxd5 {[%clk 0:00:42]} 35. Qc8+ {[%clk 0:00:14]}  Kg7 {[%clk 0:00:42]} 36. Qxa6 {[%clk 0:00:15]}  Qe1+ {[%clk 0:00:41]} 37. Qf1 {[%clk 0:00:15]}  Qd2 {[%clk 0:00:40]} 38. Qd3 {[%clk 0:00:14]}  Qxa2 {[%clk 0:00:38]} 39. Qd4+ {[%clk 0:00:14]}  Kf8 {[%clk 0:00:31]} 40. Kg2 {[%clk 0:00:14]}  Ke7 {[%clk 0:00:24]} 41. Kf3 {[%clk 0:00:14]}  Nf6 {[%clk 0:00:22]} 42. Ne4 {[%clk 0:00:13]}  Qb3+ {[%clk 0:00:18]} 43. Nc3 {[%clk 0:00:05]}  Ke6 {[%clk 0:00:08]} 44. h3 {[%clk 0:00:05]}  Ke7 {[%clk 0:00:05]} 45. g4 {[%clk 0:00:04]}  hxg4+ {[%clk 0:00:03]} 46. hxg4 {[%clk 0:00:05]}  Qb7+ {[%clk 0:00:03]} 47. Kg3 {[%clk 0:00:05]}  Qc6 {[%clk 0:00:02]} 48. g5 {[%clk 0:00:06]}  Nd7 {[%clk 0:00:02]} 49. Nd5+ {[%clk 0:00:05]}  Kd8 {[%clk 0:00:02]} 50. Qh8+ {[%clk 0:00:05]}  Nf8 {[%clk 0:00:02]} 51. Qxf8+ {[%clk 0:00:05]}  Kd7 {[%clk 0:00:01]} 52. Qxf7+ {[%clk 0:00:06]}  Kc8 {[%clk 0:00:02]} 53. Qf8+ {[%clk 0:00:06]}  Kb7 {[%clk 0:00:02]} 54. Ne7 {[%clk 0:00:06]}  Qc3+ {[%clk 0:00:02]} 55. Kg4 {[%clk 0:00:06]}  Qc6 {[%clk 0:00:02]} 56. Nxc6 {[%clk 0:00:06]}  Kxc6 {[%clk 0:00:03]} 57. Qf6 {[%clk 0:00:07]} 1-0


[Site "https://www.chess.com"]

[Event "Titled Tuesday Blitz January 10 Early 2023"]
[White "Tasev, Dejan"]
[Black "Kaminski, Victor"]
[WhiteFideId "936618"]
[BlackFideId "1131630"]
[WhiteElo "2205"]
[BlackElo "2247"]
[Result "0-1"]
[Round "05"]
[TimeControl "180+2"]
[Date "2023.01.10"]
[WhiteClock "0:00:49"]
[BlackClock "0:00:05"]

1. e4 {[%clk 0:03:00]}  e5 {[%clk 0:02:59]} 2. Nf3 {[%clk 0:03:00]}  Nc6 {[%clk 0:02:59]} 3. Bc4 {[%clk 0:03:00]}  Bc5 {[%clk 0:02:56]} 4. d3 {[%clk 0:03:00]}  Nf6 {[%clk 0:02:55]} 5. Nc3 {[%clk 0:03:00]}  d6 {[%clk 0:02:55]} 6. Bb3 {[%clk 0:02:59]}  h6 {[%clk 0:02:55]} 7. h3 {[%clk 0:02:59]}  O-O {[%clk 0:02:53]} 8. Be3 {[%clk 0:02:58]}  Bxe3 {[%clk 0:02:52]} 9. fxe3 {[%clk 0:02:59]}  Be6 {[%clk 0:02:49]} 10. O-O {[%clk 0:02:58]}  d5 {[%clk 0:02:46]} 11. exd5 {[%clk 0:02:56]}  Nxd5 {[%clk 0:02:47]} 12. Qe1 {[%clk 0:02:51]}  Qd6 {[%clk 0:02:37]} 13. Ne4 {[%clk 0:02:41]}  Qe7 {[%clk 0:02:35]} 14. Ng3 {[%clk 0:02:32]}  f5 {[%clk 0:02:24]} 15. e4 {[%clk 0:02:29]}  fxe4 {[%clk 0:02:12]} 16. Qxe4 {[%clk 0:02:22]}  Nf6 {[%clk 0:02:06]} 17. Qe3 {[%clk 0:02:05]}  Bxb3 {[%clk 0:02:00]} 18. axb3 {[%clk 0:02:05]}  Rae8 {[%clk 0:01:57]} 19. Rae1 {[%clk 0:02:03]}  Nd5 {[%clk 0:01:56]} 20. Qe4 {[%clk 0:01:56]}  Qc5+ {[%clk 0:01:36]} 21. Rf2 {[%clk 0:01:52]}  Nf6 {[%clk 0:01:30]} 22. Qc4+ {[%clk 0:01:47]}  Qxc4 {[%clk 0:01:29]} 23. bxc4 {[%clk 0:01:48]}  Nd7 {[%clk 0:01:15]} 24. Ne4 {[%clk 0:01:46]}  Rf4 {[%clk 0:01:03]} 25. Nc3 {[%clk 0:01:38]}  Nb6 {[%clk 0:00:56]} 26. Rfe2 {[%clk 0:01:37]}  Rf5 {[%clk 0:00:33]} 27. Nb5 {[%clk 0:01:33]}  Re7 {[%clk 0:00:28]} 28. Nc3 {[%clk 0:01:27]}  Rxf3 {[%clk 0:00:17]} 29. gxf3 {[%clk 0:01:26]}  Nd4 {[%clk 0:00:17]} 30. Rf2 {[%clk 0:01:27]}  Rf7 {[%clk 0:00:18]} 31. Kg2 {[%clk 0:01:25]}  Rf5 {[%clk 0:00:17]} 32. Re4 {[%clk 0:01:23]}  Nd7 {[%clk 0:00:17]} 33. Nd5 {[%clk 0:01:21]}  Kh7 {[%clk 0:00:13]} 34. Nxc7 {[%clk 0:01:19]}  Nf6 {[%clk 0:00:12]} 35. Rg4 {[%clk 0:01:18]}  Nxg4 {[%clk 0:00:12]} 36. hxg4 {[%clk 0:01:19]}  Rf7 {[%clk 0:00:10]} 37. Nd5 {[%clk 0:01:19]}  Kg6 {[%clk 0:00:09]} 38. Kg3 {[%clk 0:01:19]}  b5 {[%clk 0:00:05]} 39. cxb5 {[%clk 0:01:17]}  Nxb5 {[%clk 0:00:05]} 40. c3 {[%clk 0:01:14]}  Nd6 {[%clk 0:00:05]} 41. Re2 {[%clk 0:01:13]}  Rb7 {[%clk 0:00:02]} 42. b4 {[%clk 0:01:12]}  a5 {[%clk 0:00:02]} 43. bxa5 {[%clk 0:01:11]}  Rb5 {[%clk 0:00:02]} 44. Rxe5 {[%clk 0:01:10]}  Nf7 {[%clk 0:00:03]} 45. Ne7+ {[%clk 0:01:06]}  Kf6 {[%clk 0:00:02]} 46. Ng8+ {[%clk 0:01:05]}  Kxe5 {[%clk 0:00:02]} 47. a6 {[%clk 0:01:03]}  Ra5 {[%clk 0:00:03]} 48. a7 {[%clk 0:01:04]}  Kd5 {[%clk 0:00:04]} 49. d4 {[%clk 0:01:05]}  Rxa7 {[%clk 0:00:04]} 50. Kf4 {[%clk 0:01:03]}  Ra3 {[%clk 0:00:05]} 51. Ne7+ {[%clk 0:01:02]}  Kc4 {[%clk 0:00:06]} 52. Nc6 {[%clk 0:01:02]}  Rxc3 {[%clk 0:00:06]} 53. Ke4 {[%clk 0:01:01]}  Nd6+ {[%clk 0:00:06]} 54. Ke5 {[%clk 0:01:02]}  Nb5 {[%clk 0:00:06]} 55. d5 {[%clk 0:01:00]}  Rxf3 {[%clk 0:00:07]} 56. Na5+ {[%clk 0:00:59]}  Kc5 {[%clk 0:00:07]} 57. Nb7+ {[%clk 0:01:00]}  Kb6 {[%clk 0:00:07]} 58. Nd8 {[%clk 0:00:59]}  Rd3 {[%clk 0:00:07]} 59. Ne6 {[%clk 0:00:58]}  Nc3 {[%clk 0:00:08]} 60. Nf4 {[%clk 0:00:56]}  Rd1 {[%clk 0:00:07]} 61. d6 {[%clk 0:00:56]}  Kc6 {[%clk 0:00:07]} 62. Ne6 {[%clk 0:00:56]}  Rd5+ {[%clk 0:00:07]} 63. Kf4 {[%clk 0:00:56]}  Kxd6 {[%clk 0:00:07]} 64. Nxg7 {[%clk 0:00:56]}  Ke7 {[%clk 0:00:05]} 65. Nf5+ {[%clk 0:00:56]}  Kf6 {[%clk 0:00:06]} 66. Nxh6 {[%clk 0:00:56]}  Rd4+ {[%clk 0:00:06]} 67. Kg3 {[%clk 0:00:56]}  Kg5 {[%clk 0:00:05]} 68. Nf7+ {[%clk 0:00:56]}  Kg6 {[%clk 0:00:05]} 69. Ne5+ {[%clk 0:00:56]}  Kg7 {[%clk 0:00:06]} 70. Nf3 {[%clk 0:00:56]}  Rd3 {[%clk 0:00:06]} 71. Kf4 {[%clk 0:00:57]}  Ne2+ {[%clk 0:00:05]} 72. Ke4 {[%clk 0:00:57]}  Ra3 {[%clk 0:00:05]} 73. Nh4 {[%clk 0:00:56]}  Ra4+ {[%clk 0:00:05]} 74. Kf3 {[%clk 0:00:56]}  Nd4+ {[%clk 0:00:05]} 75. Kg3 {[%clk 0:00:56]}  Kf6 {[%clk 0:00:05]} 76. Ng2 {[%clk 0:00:52]}  Kg5 {[%clk 0:00:06]} 77. Ne3 {[%clk 0:00:53]}  Ra3 {[%clk 0:00:06]} 78. Kf2 {[%clk 0:00:53]}  Kf4 {[%clk 0:00:05]} 79. Nd5+ {[%clk 0:00:53]}  Kxg4 {[%clk 0:00:05]} 80. Ne3+ {[%clk 0:00:53]}  Kf4 {[%clk 0:00:05]} 81. Nd5+ {[%clk 0:00:53]}  Ke5 {[%clk 0:00:05]} 82. Nb6 {[%clk 0:00:52]}  Ke4 {[%clk 0:00:05]} 83. Nc4 {[%clk 0:00:52]}  Rc3 {[%clk 0:00:05]} 84. Nd6+ {[%clk 0:00:52]}  Kf4 {[%clk 0:00:05]} 85. Nf7 {[%clk 0:00:51]}  Rc2+ {[%clk 0:00:06]} 86. Ke1 {[%clk 0:00:51]}  Ke3 {[%clk 0:00:05]} 87. Kf1 {[%clk 0:00:51]}  Nf3 {[%clk 0:00:04]} 88. Nd6 {[%clk 0:00:49]}  Rf2# {[%clk 0:00:05]} 0-1


[Site "https://www.chess.com"]

[Event "Titled Tuesday Blitz January 10 Early 2023"]
[White "Iskusnyh, Sergei"]
[Black "Mrudul Dehankar"]
[WhiteFideId "4120027"]
[BlackFideId "25096990"]
[WhiteElo "2440"]
[BlackElo "2030"]
[Result "1-0"]
[Round "05"]
[TimeControl "180+2"]
[Date "2023.01.10"]
[WhiteClock "0:00:33"]
[BlackClock "0:00:04"]

1. d4 {[%clk 0:02:54]}  Nf6 {[%clk 0:02:55]} 2. c4 {[%clk 0:02:53]}  e6 {[%clk 0:02:55]} 3. g3 {[%clk 0:02:53]}  Bb4+ {[%clk 0:02:52]} 4. Bd2 {[%clk 0:02:53]}  Qe7 {[%clk 0:02:46]} 5. Bg2 {[%clk 0:02:51]}  Bxd2+ {[%clk 0:02:45]} 6. Qxd2 {[%clk 0:02:50]}  Nc6 {[%clk 0:02:45]} 7. Nc3 {[%clk 0:02:48]}  d6 {[%clk 0:02:31]} 8. e3 {[%clk 0:02:48]}  O-O {[%clk 0:02:20]} 9. Nge2 {[%clk 0:02:47]}  e5 {[%clk 0:02:20]} 10. h3 {[%clk 0:02:46]}  exd4 {[%clk 0:02:17]} 11. Nxd4 {[%clk 0:02:41]}  Ne5 {[%clk 0:02:05]} 12. b3 {[%clk 0:02:35]}  c6 {[%clk 0:02:01]} 13. Rd1 {[%clk 0:02:31]}  Rd8 {[%clk 0:01:58]} 14. f4 {[%clk 0:02:21]}  Ng6 {[%clk 0:01:50]} 15. O-O {[%clk 0:02:20]}  d5 {[%clk 0:01:41]} 16. cxd5 {[%clk 0:02:05]}  cxd5 {[%clk 0:01:38]} 17. Qf2 {[%clk 0:01:01]}  Ne4 {[%clk 0:01:21]} 18. Nxe4 {[%clk 0:00:56]}  dxe4 {[%clk 0:01:21]} 19. Qc2 {[%clk 0:00:52]}  Re8 {[%clk 0:01:14]} 20. Nb5 {[%clk 0:00:49]}  Bd7 {[%clk 0:00:54]} 21. Nd6 {[%clk 0:00:48]}  Red8 {[%clk 0:00:38]} 22. Qxe4 {[%clk 0:00:48]}  Qxe4 {[%clk 0:00:18]} 23. Bxe4 {[%clk 0:00:47]}  Bxh3 {[%clk 0:00:17]} 24. Rfe1 {[%clk 0:00:45]}  Bg4 {[%clk 0:00:16]} 25. Rd4 {[%clk 0:00:44]}  Rd7 {[%clk 0:00:14]} 26. Nxb7 {[%clk 0:00:41]}  Rxd4 {[%clk 0:00:12]} 27. exd4 {[%clk 0:00:42]}  Rb8 {[%clk 0:00:12]} 28. Nc5 {[%clk 0:00:36]}  Rd8 {[%clk 0:00:08]} 29. d5 {[%clk 0:00:36]}  Kf8 {[%clk 0:00:07]} 30. Nb7 {[%clk 0:00:35]}  Rd7 {[%clk 0:00:06]} 31. d6 {[%clk 0:00:35]}  Nxf4 {[%clk 0:00:04]} 32. gxf4 {[%clk 0:00:33]} 1-0


[Site "https://www.chess.com"]